fUSD/lending_fUSD_20240902
["ID","MTS","AMOUNT","RATE_DAILY","PERIOD"]
[336892812,1725235847243,-500.0,0.00022477,2]
[336892813,1725235847253,-500.0,0.00022477,2]
[336892814,1725235847262,-151.642482,0.00022477,7]
[336892815,1725235847271,-500.0,0.00022477,2]
[336892816,1725235847281,-500.0,0.00022477,2]
[336892817,1725235847292,-500.0,0.00022477,2]
[336892818,1725235847302,-500.0,0.00022477,2]
[336892819,1725235847312,-761.91,0.00022477,2]
[336892820,1725235847322,-500.0,0.00022477,2]
[336892821,1725235847333,-500.0,0.00022477,2]
[336892822,1725235847344,-749.85,0.00022477,2]
[336892823,1725235847354,-500.0,0.00022477,2]
[336892824,1725235847363,-731.63,0.00022477,2]
[336892825,1725235847373,-501.04080222,0.00022477,2]
[336892826,1725235847382,-500.0,0.00022477,2]
[336892827,1725235847391,-500.0,0.00022477,2]
[336892828,1725235847401,-540.3,0.00022477,2]
[336892829,1725235847410,-825.34,0.00022477,2]
[336892830,1725235847422,-500.0,0.00022477,2]
[336892831,1725235847431,-607.93192959,0.00022477,2]
[336892832,1725235847440,-503.68715055,0.00022477,2]
[336892833,1725235847449,-522.71,0.00022477,2]
[336892834,1725235847459,-500.0,0.00022477,2]
[336892835,1725235847469,-500.0,0.00022477,2]
[336892836,1725235847478,-500.0,0.00022477,2]
[336892837,1725235847487,-500.0,0.00022477,2]
[336892838,1725235847497,-500.0,0.00022477,2]
[336892839,1725235847506,-500.0,0.00022477,2]
[336892840,1725235847515,-500.0,0.00022477,2]
[336892841,1725235847525,-500.0,0.00022477,2]
[336892842,1725235847534,-213.61469296,0.00022477,2]
[336892843,1725235847543,-500.0,0.00022477,2]
[336892844,1725235847555,-500.0,0.00022477,2]
[336892845,1725235847565,-500.0,0.00022477,2]
[336892846,1725235847576,-500.0,0.00022477,2]
[336892847,1725235847587,-515.96,0.00022477,2]
[336892848,1725235847596,-500.0,0.00022477,2]
[336892849,1725235847606,-500.0,0.00022477,2]
[336892850,1725235847618,-547.5,0.00022477,2]
[336892851,1725235847629,-850.01,0.00022477,2]
[336892852,1725235847640,-500.0,0.00022477,2]
[336892853,1725235847650,-500.0,0.00022477,2]
[336892854,1725235847661,-500.0,0.00022477,2]
[336892855,1725235847673,-501.89,0.00022477,2]
[336892856,1725235847682,-560.26868731,0.00022477,2]
[336892857,1725235847691,-300.47071541,0.00022477,2]
[336892858,1725235847703,-500.0,0.00022477,2]
[336892859,1725235847712,-500.0,0.00022477,2]
[336892860,1725235847721,-500.0,0.00022477,2]
[336892861,1725235847731,-500.0,0.00022477,2]
[336892862,1725235847740,-500.0,0.00022477,2]
[336892863,1725235847750,-500.0,0.00022477,2]
[336892864,1725235847760,-400.0,0.00022477,2]
[336892865,1725235847770,-151.0,0.00022477,7]
[336892866,1725235847780,-151.23371,0.00022477,7]
[336892867,1725235847790,-500.0,0.00022477,2]
[336892868,1725235847799,-151.2916,0.00022477,7]
[336892869,1725235847808,-805.07,0.00022477,2]
[336892870,1725235847818,-151.0,0.00022477,7]
[336892871,1725235847827,-151.0,0.00022477,7]
[336892872,1725235847836,-151.0,0.00022477,7]
[336892873,1725235847846,-151.0,0.00022477,7]
[336892874,1725235847855,-151.0,0.00022477,7]
[336892875,1725235847865,-213.92143,0.00022477,7]
[336892876,1725235847874,-1068.43,0.00022477,2]
[336892877,1725235847883,-151.0,0.00022477,7]
[336892878,1725235847893,-151.0,0.00022477,7]
[336892879,1725235847902,-151.0,0.00022477,7]
[336892880,1725235847912,-229.127292,0.00022477,7]
[336892881,1725235847923,-927.44,0.00022477,2]
[336892882,1725235847933,-500.0,0.00022477,2]
[336892883,1725235847942,-1312.32,0.00022477,2]
[336892884,1725235847951,-151.594422,0.00022477,7]
[336892885,1725235847960,-500.0,0.00022477,2]
[336892886,1725235847970,-1255.18,0.00022477,2]
[336892887,1725235847979,-500.0,0.00022477,2]
[336892888,1725235847989,-514.99,0.00022477,2]
[336892889,1725235847999,-500.0,0.00022477,2]
[336892890,1725235848008,-500.0,0.00022477,2]
[336892891,1725235848018,-500.0,0.00022477,2]
[336892892,1725235848027,-500.0,0.00022477,2]
[336892893,1725235848037,-500.0,0.00022477,2]
[336892894,1725235848046,-500.0,0.00022477,2]
[336892895,1725235848055,-500.0,0.00022477,2]
[336892896,1725235848065,-151.583333,0.00022477,7]
[336892897,1725235848075,-151.583333,0.00022477,7]
[336892898,1725235848084,-151.583333,0.00022477,7]
[336892899,1725235848093,-151.583333,0.00022477,7]
[336892900,1725235848102,-1044.36,0.00022477,2]
[336892901,1725235848111,-500.0,0.00022477,2]
[336892902,1725235848121,-151.583333,0.00022477,7]
[336892903,1725235848131,-1000.0,0.00022477,2]
[336892904,1725235848140,-151.583333,0.00022477,7]
[336892905,1725235848150,-151.583333,0.00022477,7]
[336892906,1725235848159,-151.583333,0.00022477,7]
[336892907,1725235848170,-500.0,0.00022477,2]
[336892908,1725235848179,-274.18160114,0.00022477,2]
[336892909,1725235848188,-500.0,0.00022477,2]
[336892910,1725235848199,-500.0,0.00022477,2]
[336892911,1725235848209,-159.367768,0.00022477,7]
[336892912,1725235848219,-151.0,0.00022477,7]
[336892913,1725235848228,-159.367768,0.00022477,7]
[336892914,1725235848238,-500.0,0.00022477,2]
[336892915,1725235848248,-151.0,0.00022477,7]
[336892916,1725235848258,-500.0,0.00022477,2]
[336892917,1725235848267,-151.0,0.00022477,7]
[336892918,1725235848277,-500.0,0.00022477,2]
[336892919,1725235848286,-151.0,0.00022477,7]
[336892920,1725235848296,-500.0,0.00022477,2]
[336892921,1725235848305,-500.0,0.00022477,2]
[336892922,1725235848316,-500.0,0.00022477,2]
[336892923,1725235848326,-152.713224,0.00022477,7]
[336892924,1725235848335,-877.05,0.00022477,2]
[336892925,1725235848345,-553.93,0.00022477,2]
[336892926,1725235848354,-500.0,0.00022477,2]
[336892927,1725235848365,-1469.44,0.00022477,2]
[336892928,1725235848374,-624.73800281,0.00022477,2]
[336892929,1725235848384,-193.40226974,0.00022477,2]
[336892930,1725235848394,-500.0,0.00022477,2]
[336892931,1725235848403,-500.0,0.00022477,2]
[336892932,1725235848413,-500.0,0.00022477,2]
[336892933,1725235848426,-500.0,0.00022477,2]
[336892934,1725235848436,-500.0,0.00022477,2]
[336892935,1725235848446,-500.0,0.00022477,2]
[336892936,1725235848456,-500.0,0.00022477,3]
[336892937,1725235848467,-500.0,0.00022477,2]
[336892938,1725235848477,-500.0,0.00022477,2]
[336892939,1725235848487,-1466.27,0.00022477,2]
[336892940,1725235848497,-500.0,0.00022477,2]
[336892941,1725235848507,-151.0,0.00022477,7]
[336892942,1725235848518,-200.739622,0.00022477,2]
[336892943,1725235848528,-151.0,0.00022477,7]
[336892944,1725235848538,-151.0,0.00022477,7]
[336892945,1725235848548,-500.0,0.00022477,2]
[336892946,1725235848558,-200.739622,0.00022477,2]
[336892947,1725235848568,-200.739622,0.00022477,2]
[336892948,1725235848577,-200.739622,0.00022477,2]
[336892949,1725235848587,-200.739622,0.00022477,2]
[336892950,1725235848596,-500.0,0.00022477,2]
[336892951,1725235848606,-518.01762807,0.00022477,2]
[336892952,1725235848617,-500.0,0.00022477,2]
[336892953,1725235848627,-802.76,0.00022477,2]
[336892954,1725235848636,-500.0,0.00022477,2]
[336892955,1725235848646,-500.0,0.00022477,2]
[336892956,1725235848656,-500.0,0.00022477,2]
[336892957,1725235848667,-500.0,0.00022477,2]
[336892958,1725235848676,-795.93,0.00022477,2]
[336892959,1725235848686,-151.0,0.00022477,7]
[336892960,1725235848697,-151.0,0.00022477,7]
[336892961,1725235848709,-151.0,0.00022477,7]
[336892962,1725235848719,-151.0,0.00022477,7]
[336892963,1725235848730,-151.0,0.00022477,7]
[336892964,1725235848739,-151.0,0.00022477,7]
[336892965,1725235848750,-151.0,0.00022477,7]
[336892966,1725235848760,-1198.77,0.00022477,2]
[336892967,1725235848769,-204.61875228,0.00022477,2]
[336892968,1725235848780,-151.0,0.00022477,7]
[336892969,1725235848790,-153.454988,0.00022477,7]
[336892970,1725235848799,-151.0,0.00022477,7]
[336892971,1725235848808,-500.0,0.00022477,2]
[336892972,1725235848818,-151.0,0.00022477,7]
[336892973,1725235848827,-151.0,0.00022477,7]
[336892974,1725235848837,-500.0,0.00022477,2]
[336892975,1725235848847,-196.535535,0.00022477,7]
[336892976,1725235848856,-151.0,0.00022477,7]
[336892977,1725235848865,-196.535535,0.00022477,7]
[336892978,1725235848875,-196.535535,0.00022477,7]
[336892979,1725235848885,-196.535535,0.00022477,7]
[336892980,1725235848894,-196.535535,0.00022477,7]
[336892981,1725235848904,-196.535535,0.00022477,7]
[336892982,1725235848913,-508.03,0.00022477,2]
[336892983,1725235848923,-500.0,0.00022477,2]
[336892984,1725235848933,-1157.7,0.00022477,2]
[336892985,1725235848943,-844.38,0.00022477,2]
[336892986,1725235848953,-500.0,0.00022477,2]
[336892987,1725235848963,-573.31,0.00022477,2]
[336892988,1725235848973,-500.0,0.00022477,2]
[336892989,1725235848983,-500.0,0.00022477,2]
[336892990,1725235848993,-1254.79,0.00022477,2]
[336892991,1725235849003,-500.0,0.00022477,2]
[336892992,1725235849013,-151.0,0.00022477,7]
[336892993,1725235849022,-151.0,0.00022477,7]
[336892994,1725235849032,-151.0,0.00022477,7]
[336892995,1725235849042,-151.0,0.00022477,7]
[336892996,1725235849051,-500.0,0.00022477,2]
[336892997,1725235849061,-694.13,0.00022477,2]
[336892998,1725235849071,-500.0,0.00022477,2]
[336892999,1725235849081,-1150.8,0.00022477,2]
[336893000,1725235849092,-151.0,0.00022477,7]
[336893001,1725235849102,-151.0,0.00022477,7]
[336893002,1725235849112,-151.0,0.00022477,7]
[336893003,1725235849121,-151.0,0.00022477,7]
[336893004,1725235849131,-536.39,0.00022477,2]
[336893005,1725235849140,-500.0,0.00022477,2]
[336893006,1725235849150,-500.0,0.00022477,2]
[336893007,1725235849160,-500.0,0.00022477,2]
[336893008,1725235849171,-2202.15,0.00022477,2]
[336893009,1725235849180,-500.0,0.00022477,2]
[336893010,1725235849189,-500.0,0.00022477,2]
[336893011,1725235849199,-500.0,0.00022477,2]
[336893012,1725235849209,-1329.56,0.00022477,2]
[336893013,1725235849218,-500.0,0.00022477,2]
[336893014,1725235849228,-500.0,0.00022477,2]
[336893015,1725235849238,-151.0,0.00022477,7]
[336893016,1725235849248,-151.0,0.00022477,7]
[336893017,1725235849258,-151.0,0.00022477,7]
[336893018,1725235849268,-151.0,0.00022477,7]
[336893019,1725235849278,-500.0,0.00022477,2]
[336893020,1725235849288,-952.21,0.00022477,2]
[336893021,1725235849298,-1040.37,0.00022477,2]
[336893022,1725235849307,-1416.65,0.00022477,2]
[336893023,1725235849318,-500.0,0.00022477,2]
[336893024,1725235849328,-500.0,0.00022477,2]
[336893025,1725235849337,-238.451796,0.00022477,7]
[336893026,1725235849347,-500.0,0.00022477,2]
[336893027,1725235849357,-238.451796,0.00022477,7]
[336893028,1725235849367,-238.451796,0.00022477,7]
[336893029,1725235849377,-238.451796,0.00022477,7]
[336893030,1725235849388,-500.0,0.00022477,2]
[336893031,1725235849398,-578.76,0.00022477,2]
[336893032,1725235849408,-238.451796,0.00022477,7]
[336893033,1725235849420,-238.451796,0.00022477,7]
[336893034,1725235849431,-500.0,0.00022477,2]
[336893035,1725235849441,-238.451796,0.00022477,7]
[336893036,1725235849451,-1311.57,0.00022477,2]
[336893037,1725235849461,-238.451796,0.00022477,7]
[336893038,1725235849471,-1089.45,0.00022477,2]
[336893039,1725235849481,-500.0,0.00022477,2]
[336893040,1725235849491,-394.943313,0.00022477,7]
[336893041,1725235849500,-394.943313,0.00022477,7]
[336893042,1725235849510,-394.943313,0.00022477,7]
[336893043,1725235849721,-647.67062021,0.00022477,2]
[336893044,1725235849731,-151.0,0.00022477,7]
[336893045,1725235849740,-394.943313,0.00022477,7]
[336893046,1725235849750,-151.0,0.00022477,7]
[336893047,1725235849759,-1462.45,0.00022477,2]
[336893048,1725235849768,-151.0,0.00022477,7]
[336893049,1725235849778,-151.0,0.00022477,7]
[336893050,1725235849787,-711.37,0.00022477,2]
[336893051,1725235849797,-500.0,0.00022477,2]
[336893052,1725235849806,-314.22151375,0.00022477,7]
[336893053,1725235850303,-80.72179925,0.00022477,7]
[336893054,1725235850312,-394.943313,0.00022477,7]
[336893055,1725235850321,-394.943313,0.00022477,7]
[336893056,1725235850330,-641.83,0.00022477,2]
[336893057,1725235850339,-152.114341,0.00022477,7]
[336893058,1725235850348,-1875.68,0.00022477,2]
[336893059,1725235850356,-500.0,0.00022477,2]
[336893060,1725235850365,-500.0,0.00022477,2]
[336893061,1725235850374,-512.40114429,0.00022477,2]
[336893062,1725235850384,-394.943313,0.00022477,7]
[336893063,1725235850393,-500.0,0.00022477,2]
[336893064,1725235850402,-1360.92,0.00022477,2]
[336893065,1725235850411,-500.0,0.00022477,2]
[336893066,1725235850421,-500.0,0.00022477,2]
[336893067,1725235850430,-151.0,0.00022477,7]
[336893068,1725235850439,-151.0,0.00022477,7]
[336893069,1725235850448,-10.90277646,0.00022477,2]
[336893070,1725235850472,-489.09722354,0.00022477,2]
[336893071,1725235850481,-151.0,0.00022477,7]
[336893072,1725235850490,-151.580671,0.00022477,7]
[336893073,1725235850500,-598.5,0.00022477,2]
[336893074,1725235850510,-151.0,0.00022477,7]
[336893075,1725235850519,-151.0,0.00022477,7]
[336893076,1725235850529,-1325.66,0.00022477,2]
[336893077,1725235850539,-152.677944,0.00022477,7]
[336893078,1725235850549,-1217.6,0.00022477,2]
[336893079,1725235850558,-500.0,0.00022477,2]
[336893080,1725235850567,-500.0,0.00022477,2]
[336893081,1725235850575,-1039.74,0.00022477,2]
[336893082,1725235850584,-236.03358342,0.00022477,2]
[336893083,1725235850598,-263.96641658,0.00022477,2]
[336893084,1725235850607,-1447.36,0.00022477,2]
[336893085,1725235850616,-500.0,0.00022477,2]
[336893086,1725235850626,-500.0,0.00022477,2]
[336893087,1725235850636,-151.0,0.00022477,7]
[336893088,1725235850646,-500.0,0.00022477,2]
[336893089,1725235850655,-151.0,0.00022477,7]
[336893090,1725235850665,-151.0,0.00022477,7]
[336893091,1725235850675,-1272.65,0.00022477,2]
[336893092,1725235850685,-561.06267881,0.00022477,2]
[336893093,1725235850694,-151.0,0.00022477,7]
[336893094,1725235850706,-500.0,0.00022477,2]
[336893095,1725235850715,-295.96111552,0.00022477,2]
[336893096,1725235850728,-204.03888448,0.00022477,2]
[336893097,1725235850737,-500.0,0.00022477,2]
[336893098,1725235850746,-522.53,0.00022477,2]
[336893099,1725235850756,-500.0,0.00022477,2]
[336893100,1725235850765,-608.3,0.00022477,2]
[336893101,1725235850777,-311.86449502,0.00022477,2]
[336893102,1725235850787,-1436.93,0.00022477,2]
[336893103,1725235850798,-500.0,0.00022477,2]
[336893104,1725235850807,-1312.24,0.00022477,2]
[336893105,1725235850816,-500.0,0.00022477,2]
[336893106,1725235850826,-1344.86,0.00022477,2]
[336893107,1725235850835,-420.78894859,0.00022477,2]
[336893108,1725235850858,-970.73105141,0.00022477,2]
[336893109,1725235850874,-500.0,0.00022477,2]
[336893110,1725235850887,-74.23477315,0.00022477,7]
[336893111,1725235850904,-76.76522685,0.00022477,7]
[336893112,1725235850932,-500.0,0.00022477,2]
[336893113,1725235850952,-151.0,0.00022477,7]
[336893114,1725235850971,-151.0,0.00022477,7]
[336893115,1725235850987,-151.0,0.00022477,7]
[336893116,1725235851004,-490.63368508,0.00022477,2]
[336893117,1725235851348,-237.24631492,0.00022477,2]
[336893118,1725235851363,-500.0,0.00022477,2]
[336893119,1725235851377,-500.0,0.00022477,2]
[336893120,1725235851392,-162.61255073,0.00022477,2]
[336893121,1725235851408,-1025.24744927,0.00022477,2]
[336893122,1725235851423,-151.0,0.00022477,7]
[336893123,1725235851435,-151.0,0.00022477,7]
[336893124,1725235851448,-83.95255073,0.00022477,7]
[336893125,1725235851468,-67.04744927,0.00022477,7]
[336893126,1725235851480,-151.0,0.00022477,7]
[336893127,1725235851493,-504.41243841,0.00022477,2]
[336893128,1725235851507,-184.1228162,0.00022477,2]
[336893129,1725235851524,-483.6171838,0.00022477,2]
[336893130,1725235851538,-500.0,0.00022477,2]
[336893131,1725235851550,-1306.966496,0.00022477,2]
[336893132,1725235851575,-961.27203814,0.00022477,2]
[336893133,1725235851614,-17731.76146586,0.00022477,2]
[336893134,1725235851629,-151.0,0.00022477,7]
[336893135,1725235851643,-500.0,0.00022477,2]
[336893136,1725235851656,-152.044689,0.00022477,7]
[336893137,1725235851673,-1641.54,0.00022477,2]
[336893138,1725235851685,-500.0,0.00022477,2]
[336893139,1725235851698,-500.0,0.00022477,2]
[336893140,1725235851713,-546.77,0.00022477,2]
[336893141,1725235851725,-502.36059511,0.00022477,2]
[336893142,1725235851737,-616.79,0.00022477,2]
[336893143,1725235851750,-1311.35,0.00022477,2]
[336893144,1725235851762,-500.0,0.00022477,2]
[336893145,1725235851775,-1367.18,0.00022477,2]
[336893146,1725235851790,-500.0,0.00022477,2]
[336893147,1725235851805,-500.0,0.00022477,2]
[336893148,1725235851818,-554.43,0.00022477,2]
[336893149,1725235851831,-1400.8,0.00022477,2]
[336893150,1725235851844,-500.0,0.00022477,2]
[336893151,1725235851856,-500.0,0.00022477,2]
[336893152,1725235851869,-1217.7,0.00022477,2]
[336893153,1725235851882,-500.0,0.00022477,2]
[336893154,1725235851895,-500.0,0.00022477,2]
[336893155,1725235851908,-151.0,0.00022477,7]
[336893156,1725235851922,-151.0,0.00022477,7]
[336893157,1725235851934,-151.0,0.00022477,7]
[336893158,1725235851947,-151.0,0.00022477,7]
[336893159,1725235851959,-500.0,0.00022477,2]
[336893160,1725235851973,-500.0,0.00022477,2]
[336893161,1725235851986,-1182.76,0.00022477,2]
[336893162,1725235851998,-151.0,0.00022477,7]
[336893163,1725235852013,-802.18,0.00022477,2]
[336893164,1725235852026,-1251.49,0.00022477,2]
[336893165,1725235852039,-1345.09,0.00022477,2]
[336893166,1725235852052,-500.0,0.00022477,2]
[336893167,1725235852066,-168.92550619,0.00022477,2]
[336893168,1725235852078,-1292.62,0.00022477,2]
[336893169,1725235852091,-500.0,0.00022477,2]
[336893170,1725235852104,-500.0,0.00022477,2]
[336893171,1725235852117,-500.0,0.00022477,2]
[336893172,1725235852129,-934.11,0.00022477,2]
[336893173,1725235852142,-532.06,0.00022477,2]
[336893174,1725235852154,-1413.41,0.00022477,2]
[336893175,1725235852171,-843.3,0.00022477,2]
[336893176,1725235852183,-500.0,0.00022477,2]
[336893177,1725235852196,-500.0,0.00022477,2]
[336893178,1725235852209,-500.0,0.00022477,2]
[336893179,1725235852222,-151.0,0.00022477,7]
[336893180,1725235852235,-151.0,0.00022477,7]
[336893181,1725235852247,-151.0,0.00022477,7]
[336893182,1725235852261,-500.0,0.00022477,2]
[336893183,1725235852273,-151.0,0.00022477,7]
[336893184,1725235852286,-500.0,0.00022477,2]
[336893185,1725235852298,-500.0,0.00022477,2]
[336893186,1725235852311,-854.34,0.00022477,2]
[336893187,1725235852323,-500.0,0.00022477,2]
[336893188,1725235852336,-151.0,0.00022477,7]
[336893189,1725235852348,-500.0,0.00022477,2]
[336893190,1725235852360,-500.0,0.00022477,2]
[336893191,1725235852372,-151.0,0.00022477,7]
[336893192,1725235852384,-151.0,0.00022477,7]
[336893193,1725235852396,-151.0,0.00022477,7]
[336893194,1725235852409,-500.0,0.00022477,2]
[336893195,1725235852426,-528.50856122,0.00022477,2]
[336893196,1725235852438,-629.89,0.00022477,2]
[336893197,1725235852451,-675.5,0.00022477,2]
[336893198,1725235852464,-500.0,0.00022477,2]
[336893199,1725235852476,-500.0,0.00022477,2]
[336893200,1725235852488,-500.0,0.00022477,2]
[336893201,1725235852501,-1148.5,0.00022477,2]
[336893202,1725235852515,-500.0,0.00022477,2]
[336893203,1725235852527,-500.0,0.00022477,2]
[336893204,1725235852540,-956.33,0.00022477,2]
[336893205,1725235852553,-500.0,0.00022477,2]
[336893206,1725235852565,-500.0,0.00022477,2]
[336893207,1725235852577,-864.02,0.00022477,2]
[336893208,1725235852589,-894.52,0.00022477,2]
[336893209,1725235852602,-528.37,0.00022477,2]
[336893210,1725235852616,-500.0,0.00022477,2]
[336893211,1725235852629,-1476.45,0.00022477,2]
[336893212,1725235852641,-500.0,0.00022477,2]
[336893213,1725235852655,-1320.71,0.00022477,2]
[336893214,1725235852670,-151.0,0.00022477,7]
[336893215,1725235852682,-500.0,0.00022477,2]
[336893216,1725235852695,-151.0,0.00022477,7]
[336893217,1725235852712,-151.0,0.00022477,7]
[336893218,1725235852724,-1078.08,0.00022477,2]
[336893219,1725235852736,-151.0,0.00022477,7]
[336893220,1725235852747,-1242.53,0.00022477,2]
[336893221,1725235852757,-319.87995818,0.00022477,2]
[336893222,1725235852766,-1295.08,0.00022477,2]
[336893223,1725235852778,-151.0,0.00022477,7]
[336893224,1725235852787,-151.0,0.00022477,7]
[336893225,1725235852797,-1176.21,0.00022477,2]
[336893226,1725235852806,-151.0,0.00022477,7]
[336893227,1725235852816,-156.107843,0.00022477,7]
[336893228,1725235852825,-500.0,0.00022477,2]
[336893229,1725235852834,-1296.06,0.00022477,2]
[336893230,1725235852844,-500.0,0.00022477,2]
[336893231,1725235852853,-500.0,0.00022477,2]
[336893232,1725235852862,-757.41,0.00022477,2]
[336893233,1725235852871,-876.82,0.00022477,2]
[336893234,1725235852881,-1093.1,0.00022477,2]
[336893235,1725235852891,-500.0,0.00022477,2]
[336893236,1725235852901,-500.0,0.00022477,2]
[336893237,1725235852912,-1513.95481254,0.00022477,7]
[336893238,1725235852930,-607.45286246,0.00022477,7]
[336893239,1725235852939,-992.54713754,0.00022477,7]
[336893240,1725235852950,-1128.86053746,0.00022477,7]
[336893241,1725235852959,-2121.407675,0.00022477,7]
[336893242,1725235852968,-2121.407675,0.00022477,7]
[336893243,1725235852978,-500.0,0.00022477,2]
[336893244,1725235852987,-500.0,0.00022477,2]
[336893245,1725235852996,-2121.407675,0.00022477,7]
[336893246,1725235853005,-2121.407675,0.00022477,7]
[336893247,1725235853015,-2121.407675,0.00022477,7]
[336893248,1725235853023,-2121.407675,0.00022477,7]
[336893249,1725235853032,-883.95,0.00022477,2]
[336893250,1725235853041,-500.0,0.00022477,2]
[336893251,1725235853050,-500.0,0.00022477,2]
[336893252,1725235853060,-500.0,0.00022477,2]
[336893253,1725235853069,-911.79,0.00022477,2]
[336893254,1725235853078,-1172.65,0.00022477,2]
[336893255,1725235853516,-500.0,0.00022477,2]
[336893256,1725235853540,-500.0,0.00022477,2]
[336893257,1725235853566,-556.69656911,0.00022477,2]
[336893258,1725235853578,-951.26,0.00022477,2]
[336893259,1725235853589,-1367.91,0.00022477,2]
[336893260,1725235853599,-500.0,0.00022477,2]
[336893261,1725235853609,-151.0,0.00022477,7]
[336893262,1725235853620,-151.0,0.00022477,7]
[336893263,1725235853631,-980.0,0.00022477,2]
[336893264,1725235853641,-151.0,0.00022477,7]
[336893265,1725235853651,-1015.25,0.00022477,2]
[336893266,1725235853660,-151.0,0.00022477,7]
[336893267,1725235853671,-500.0,0.00022477,2]
[336893268,1725235853680,-500.0,0.00022477,2]
[336893269,1725235853691,-1551.64,0.00022477,2]
[336893270,1725235853702,-151.0,0.00022477,7]
[336893271,1725235853711,-151.0,0.00022477,7]
[336893272,1725235853722,-151.0,0.00022477,7]
[336893273,1725235853731,-151.0,0.00022477,7]
[336893274,1725235853740,-1447.34,0.00022477,2]
[336893275,1725235853750,-498.5200659,0.00022477,2]
[336893276,1725235853759,-500.0,0.00022477,2]
[336893277,1725235853768,-500.0,0.00022477,2]
[336893278,1725235853777,-151.0,0.00022477,7]
[336893279,1725235853787,-151.0,0.00022477,7]
[336893280,1725235853796,-151.0,0.00022477,7]
[336893281,1725235853806,-1114.08,0.00022477,2]
[336893282,1725235853815,-151.670185,0.00022477,7]
[336893283,1725235853826,-697.81,0.00022477,2]
[336893284,1725235853835,-500.0,0.00022477,2]
[336893285,1725235853844,-500.0,0.00022477,2]
[336893286,1725235853853,-500.0,0.00022477,2]
[336893287,1725235853862,-500.0,0.00022477,2]
[336893288,1725235853872,-1186.4,0.00022477,2]
[336893289,1725235853882,-614.61976867,0.00022477,2]
[336893290,1725235853891,-862.36,0.00022477,2]
[336893291,1725235853900,-1307.92,0.00022477,2]
[336893292,1725235853909,-500.0,0.00022477,2]
[336893293,1725235853918,-500.0,0.00022477,2]
[336893294,1725235853927,-500.0,0.00022477,2]
[336893295,1725235853936,-677.24,0.00022477,2]
[336893296,1725235853945,-538.59,0.00022477,2]
[336893297,1725235853954,-521.91621942,0.00022477,2]
[336893298,1725235853963,-151.0,0.00022477,7]
[336893299,1725235853972,-500.0,0.00022477,2]
[336893300,1725235853981,-151.0,0.00022477,7]
[336893301,1725235853990,-151.0,0.00022477,7]
[336893302,1725235853999,-509.73437357,0.00022477,2]
[336893303,1725235854008,-151.0,0.00022477,7]
[336893304,1725235854018,-1062.75,0.00022477,2]
[336893305,1725235854027,-886.59,0.00022477,2]
[336893306,1725235854036,-151.0,0.00022477,7]
[336893307,1725235854045,-562.3,0.00022477,2]
[336893308,1725235854055,-151.0,0.00022477,7]
[336893309,1725235854064,-500.0,0.00022477,2]
[336893310,1725235854073,-1080.56,0.00022477,2]
[336893311,1725235854083,-500.0,0.00022477,2]